bitfinex-derivatives/quotes_ETHF0:USTF0_20240924
["timestamp","ask_amount","ask_price","bid_price","bid_amount"]
[1727140902852,0.37872,2640.6,2640.4,1.97520136]
[1727140903038,1.8869,2640.5,2640.2,1.97520136]
[1727140903244,0.43064182,2640.4,2640.3,1.36597924]
[1727140903452,0.37878,2640.2,2639.8,1.97520136]
[1727140903655,3.2078,2640.2,2639.9,1.95705639]
[1727140903849,3.58658,2640.2,2639.7,2.87710136]
[1727140904055,3.58658,2640.2,2639.8,1.95713006]
[1727140904251,0.05190182,2640.0,2639.7,0.9019]
[1727140904455,0.05190182,2640.0,2639.6,0.8823]
[1727140904456,0.43070182,2640.0,2639.6,0.8823]
[1727140904652,1.37401182,2640.0,2639.6,0.8823]
[1727140904857,0.9515,2639.9,2639.6,0.8823]
[1727140905149,0.9515,2639.9,2639.6,1.26115]
[1727140905353,0.05190182,2639.8,2639.6,0.8823]
[1727140906051,0.05190182,2639.8,2639.3,4.88309]
[1727140906248,0.05190182,2639.8,2639.4,1.3687511]
[1727140906451,0.05190182,2639.6,2639.3,5.4486]
[1727140906756,0.05190182,2639.6,2639.3,5.8275]
[1727140907255,0.05190182,2639.6,2639.3,5.4486]
[1727140907555,3.2078,2640.2,2639.5,12.4488]
[1727140907757,3.2078,2640.2,2639.8,3.03882]
[1727140907947,3.2078,2640.2,2639.9,0.37881]
[1727140908358,3.2078,2640.2,2639.9,0.9539]
[1727140909054,3.2078,2640.2,2639.9,1.33271]
[1727140909251,3.2078,2640.2,2639.9,0.9539]
[1727140909762,3.2078,2640.2,2639.9,1.33272]
[1727140909965,3.2078,2640.2,2640.0,0.3788]
[1727140910257,3.2078,2640.2,2639.9,1.33271]
[1727140910958,3.2078,2640.2,2640.0,40.8]
[1727140911353,3.2078,2640.2,2639.9,0.9539]
[1727140911354,3.2078,2640.2,2639.9,1.33271]
[1727140911757,3.2078,2640.2,2639.9,3.17971]
[1727140912263,3.2078,2640.2,2640.0,40.8]
[1727140913455,3.2078,2640.2,2639.7,0.37884]
[1727140913857,3.2078,2640.2,2639.8,40.8]
[1727140914562,3.2078,2640.2,2639.5,0.8796]
[1727140914867,0.3788,2640.1,2639.5,1.25847]
[1727140915055,1.3219,2640.0,2639.5,1.25847]
[1727140915256,0.9431,2640.0,2639.5,1.25847]
[1727140915665,0.9431,2640.0,2639.6,2.66]
[1727140916562,3.58658,2640.2,2639.6,3.03885]
[1727140916763,4.48878,2640.2,2639.6,2.66]
[1727140916958,4.48878,2640.2,2639.6,3.03885]
[1727140919767,3.2078,2640.1,2639.7,0.37884]
[1727140920359,3.2078,2640.1,2639.6,3.03885]
[1727140920669,0.37887,2639.6,2639.0,0.46694]
[1727140920872,0.37887,2639.6,2639.1,0.963]
[1727140921068,1.29227,2639.6,2639.1,0.963]
[1727140921362,1.29227,2639.6,2638.8,4.1345]
[1727140921363,0.37891,2639.3,2638.8,0.9267]
[1727140921564,0.37891,2639.3,2638.8,1.30567]
[1727140921766,0.37891,2639.3,2638.8,0.9267]
[1727140921956,3.2078,2639.4,2638.8,1.30567]
[1727140921957,3.5867,2639.4,2638.8,1.30567]
[1727140922160,3.5867,2639.4,2638.7,1.34198]
[1727140922161,0.37891,2639.3,2638.7,1.34198]
[1727140922568,0.37891,2639.3,2638.7,0.963]
[1727140922569,3.2078,2639.1,2638.7,0.963]
[1727140922767,3.2078,2639.1,2638.4,0.9267]
[1727140923064,0.37896,2638.9,2638.4,0.9267]
[1727140923264,1.8182,2639.0,2638.4,0.9267]
[1727140923472,2.19715,2639.0,2638.4,0.9267]
[1727140923665,0.37896,2638.9,2638.4,0.9267]
[1727140923864,0.37896,2638.9,2638.3,3.2078]
[1727140924368,1.8182,2639.0,2638.6,2.66]
[1727140924570,1.8182,2639.0,2638.7,0.37898]
[1727140924764,1.8182,2639.0,2638.6,3.039]
[1727140925070,1.8182,2639.0,2638.4,2.66]
[1727140925370,1.8182,2639.0,2638.5,0.37902]
[1727140925575,2.19715,2639.0,2638.4,3.03903]
[1727140926372,1.8182,2639.0,2638.4,2.66]
[1727140926668,1.8182,2639.0,2638.6,0.37899]
[1727140926875,1.8182,2639.0,2638.7,41.17899]
[1727140927075,1.8182,2639.0,2638.7,40.8]
[1727140928467,3.2078,2639.1,2639.0,0.37895]
[1727140928671,3.2078,2639.1,2638.9,0.37895]
[1727140928867,3.2078,2639.1,2639.0,0.37895]
[1727140929076,0.9012,2639.4,2639.1,0.32963]
[1727140929273,0.9012,2639.4,2639.2,0.37891]
[1727140929471,4.1584,2639.6,2639.2,0.37891]
[1727140929472,4.1584,2639.6,2639.2,2.66]
[1727140929671,4.1584,2639.6,2639.2,0.37891]
[1727140929863,4.1584,2639.6,2639.0,2.66]
[1727140929864,4.1584,2639.6,2639.1,0.37892]
[1727140931075,4.1584,2639.6,2638.8,4.4985]
[1727140931273,4.1584,2639.6,2638.8,1.8385]
[1727140931274,0.37889,2639.4,2638.8,1.8385]
[1727140931479,0.37889,2639.4,2638.8,2.21746]
[1727140931682,3.03888,2639.5,2638.9,0.37895]
[1727140932187,0.37889,2639.4,2638.8,2.21747]
[1727140932582,0.8838,2639.3,2638.8,2.21747]
[1727140932781,4.47051,2639.3,2638.8,2.21747]
[1727140932981,6.7516,2639.3,2638.7,40.8]
[1727140933280,6.7516,2639.3,2638.4,3.2078]
[1727140933281,0.37897,2638.9,2638.4,3.2078]
[1727140933483,0.379,2638.7,2638.4,3.2078]
[1727140934186,1.8504,2638.8,2638.4,3.2078]
[1727140934885,1.8504,2638.8,2638.4,3.58683]
[1727140935084,1.8504,2638.8,2638.4,3.2078]
[1727140935285,1.8504,2638.8,2638.4,3.58683]
[1727140935487,1.8504,2638.8,2638.4,3.2078]
[1727140936479,0.37902,2638.5,2637.9,0.9045]
[1727140936685,0.37902,2638.5,2637.9,1.2836]
[1727140936885,0.37902,2638.5,2638.0,40.8]
[1727140937075,2.66,2638.6,2638.1,0.37906]
[1727140937278,3.5868,2638.7,2638.1,0.37907]
[1727140937475,0.379,2638.6,2638.0,0.37908]
[1727140937989,3.5868,2638.7,2638.1,0.37907]
[1727140938183,3.5868,2638.7,2637.9,44.3645]
[1727140938184,3.2078,2638.7,2637.9,44.3645]
[1727140938384,0.37904,2638.4,2637.9,41.7045]
[1727140938586,2.66,2638.4,2637.7,2.66]
[1727140938785,0.9193,2638.3,2637.8,0.37911]
[1727140939091,1.29835,2638.3,2637.8,0.37911]
[1727140939683,0.9193,2638.3,2637.7,0.37913]
[1727140939882,0.9193,2638.3,2637.6,1.8506]
[1727140940184,0.9193,2638.3,2637.9,2.66]
[1727140940386,3.2078,2638.4,2638.0,0.8948]
[1727140940691,3.2078,2638.4,2638.2,0.37905]
[1727140940889,3.2078,2638.4,2638.3,0.37905]
[1727140941694,3.2078,2638.4,2638.2,0.37905]
[1727140942286,3.2078,2638.4,2638.3,0.37905]
[1727140942487,3.2078,2638.4,2638.1,0.9172]
[1727140942488,0.9193,2638.7,2638.5,0.37902]
[1727140942986,0.9193,2638.7,2638.4,2.66]
[1727140943788,0.9193,2638.7,2638.5,0.37901]
[1727140943989,1.79487758,2639.0,2638.7,0.37898]
[1727140943990,1.41592758,2639.0,2638.7,0.37898]
[1727140944192,3.2078,2639.1,2638.7,0.37898]
[1727140944584,3.58674,2639.1,2638.6,0.379]
[1727140944892,3.58674,2639.1,2638.7,0.37899]
[1727140945079,3.58673,2639.1,2638.8,40.8]
[1727140945687,3.58673,2639.1,2638.6,0.37899]
[1727140945986,3.2078,2639.1,2638.7,0.37898]
[1727140946182,3.2078,2639.1,2638.8,0.37897]
[1727140946383,3.2078,2639.1,2638.9,0.37895]
[1727140946684,1.8541,2639.2,2639.0,0.37894]
[1727140946885,0.9497,2639.2,2639.0,0.37894]
[1727140947082,0.9497,2639.2,2638.9,0.37895]
[1727140947893,0.9497,2639.2,2638.8,4.5645]
[1727140948192,3.2078,2639.5,2639.1,2.66]
[1727140948399,3.2078,2639.5,2639.3,0.3789]
[1727140949496,3.2078,2639.5,2639.4,0.37889]
[1727140949798,3.58662,2639.9,2639.5,0.37887]
[1727140949992,3.2078,2639.9,2639.4,1.8789]
[1727140950196,3.58667,2639.6,2639.1,0.37892]
[1727140950595,0.8961,2639.5,2639.0,3.2078]
[1727140950892,0.8961,2639.5,2639.0,3.58674]
[1727140950893,2.16958,2639.5,2639.0,3.58674]
[1727140951088,0.37889,2639.4,2639.0,3.2078]
[1727140951499,1.7907,2639.5,2639.0,3.58675]
[1727140951500,2.16958,2639.5,2639.0,3.58675]
[1727140951698,2.16958,2639.5,2639.1,0.37893]
[1727140952003,0.37889,2639.4,2639.0,0.66934]
[1727140952211,0.37889,2639.4,2637.7,0.379]
[1727140952212,0.37902,2638.5,2638.4,1.48244298]
[1727140952498,3.2078,2638.5,2638.4,2.23963]
[1727140952689,1.8787,2639.5,2638.4,62.12163625]
[1727140952690,3.2078,2639.3,2638.4,62.12163625]
[1727140952889,3.2078,2639.3,2639.1,0.37893]
[1727140953196,3.2078,2639.3,2638.6,3.2301]
[1727140953399,3.2078,2639.3,2638.4,42.6606]
[1727140953400,3.2078,2639.0,2638.8,0.37896]
[1727140953794,3.2078,2639.0,2638.8,4.16856]
[1727140954102,3.2078,2639.0,2638.8,4.16857]
[1727140955101,3.2078,2639.0,2638.8,3.7896]
[1727140955301,3.2078,2639.0,2638.9,4.16856]
[1727140955705,3.2078,2639.0,2638.9,10.16856]
[1727140956093,3.2078,2639.0,2638.9,3.7896]
[1727140956596,3.2078,2639.0,2638.4,42.6606]
[1727140956790,3.2078,2638.7,2638.4,46.62462]
[1727140956991,3.2078,2638.7,2638.4,1.8606]
[1727140957192,0.37902,2638.5,2638.4,0.9695]
[1727140958597,0.37903,2638.4,2637.9,1.2618]
[1727140958803,3.2078,2638.2,2638.0,0.9497]
[1727140960102,3.2078,2638.2,2638.0,1.32879]
[1727140960303,3.2078,2638.2,2638.0,0.9497]
[1727140960799,3.2078,2638.2,2638.0,1.32879]
[1727140960999,3.2078,2638.2,2638.1,0.37907]
[1727140961304,3.2078,2638.2,2638.1,4.16947]
[1727140963106,3.2078,2638.2,2638.1,10.16947]
[1727140964303,3.2078,2638.2,2638.1,4.16947]
[1727140964506,3.2078,2638.2,2638.1,5.50272999]
[1727140972413,3.2078,2638.6,2638.5,0.37901]
[1727140972603,3.2078,2638.6,2638.5,4.0304173]
[1727140972904,3.2078,2638.6,2638.5,14.16226378]
[1727140976499,3.2078,2638.6,2638.5,5.50226378]
[1727140977414,3.2078,2638.6,2638.5,1.71266378]
[1727140977609,3.2078,2638.6,2638.5,1.71292737]
[1727140977809,3.2078,2638.6,2638.5,1.67492737]
[1727140979211,3.2078,2638.6,2638.5,14.12452737]
[1727140979405,3.2078,2638.9,2638.5,17.58127613]
[1727140979705,3.2078,2638.9,2638.8,0.37897]
[1727140979908,3.2078,2638.9,2638.8,1.71288737]
[1727140981514,3.2078,2638.9,2638.8,2.32535502]
[1727140982215,3.2078,2638.9,2638.7,0.99143765]
[1727140983019,3.2078,2638.9,2638.8,0.99143765]
[1727140983416,3.2078,2638.9,2638.8,1.37040765]
[1727140983619,3.2078,2638.9,2638.8,1.7147647]
[1727140984212,3.2078,2638.9,2638.8,11.6903448]
[1727140984516,3.2078,2638.9,2638.8,16.93710116]
[1727140985206,3.2078,2638.9,2638.8,57.73710116]
[1727140985815,3.2078,2638.9,2638.8,57.73728609]
[1727140986620,3.2078,2638.9,2638.8,47.38273599]
[1727140986814,3.2078,2638.9,2638.7,0.99153187]
[1727140987215,5.8678,2638.9,2638.7,0.99153187]
[1727140987412,5.8678,2638.9,2638.3,3.4072317]
[1727140987413,0.37897,2638.8,2638.6,0.99153187]
[1727140990915,0.37899,2638.7,2638.6,0.99153187]
[1727140991120,0.379,2638.6,2638.4,0.99153187]
[1727140991428,3.2078,2638.5,2638.4,0.99153187]
[1727140991725,3.58682,2638.5,2638.4,0.99153187]
[1727140991921,3.58682,2638.5,2638.4,2.3272826]
[1727140992118,4.14752,2638.5,2638.4,2.3272826]
[1727140992318,4.14752,2638.5,2638.4,0.99153187]
[1727140992743,16.2189,2638.5,2637.9,0.99153187]
[1727140992922,6.24689,2638.0,2637.9,0.99153187]
[1727140993122,6.81554,2638.0,2637.6,0.99153187]
[1727140993428,3.2078,2637.7,2637.5,0.99153187]
[1727140993625,3.2078,2637.7,2637.4,41.79153187]
[1727140994224,3.58694,2637.7,2637.3,0.99153187]
[1727140994522,3.2078,2637.4,2637.2,1.37073187]
[1727140996031,3.2078,2637.4,2637.2,0.99153187]
[1727140996225,3.2078,2637.4,2637.1,1.37074187]
[1727140997228,3.2078,2637.4,2637.0,42.88483187]
[1727140997527,2.66,2637.6,2637.1,0.99153187]
[1727140997528,3.2078,2637.3,2637.1,0.99153187]
[1727140998030,0.5538,2637.2,2637.0,42.88483187]
[1727140998333,0.5538,2637.2,2636.9,0.99153187]
[1727140998527,0.5538,2637.2,2636.8,3.582]
[1727140998528,3.2078,2637.0,2636.8,0.99153187]
[1727140998720,3.2078,2637.0,2636.8,0.37925]
[1727141000031,3.2078,2637.0,2636.7,0.99153187]
[1727141000032,3.2078,2637.0,2636.7,1.34110187]
[1727141000423,3.2078,2637.0,2636.7,0.37927]
[1727141000622,3.2078,2637.0,2636.9,0.37925]
[1727141001933,3.2078,2637.3,2637.2,0.3792]
[1727141002430,3.2078,2637.3,2637.1,0.37922]
[1727141002628,2.63869462,2637.3,2637.1,0.37922]
[1727141003431,2.63869462,2637.3,2637.0,0.5595]
[1727141004023,2.63869462,2637.3,2637.1,0.37922]
[1727141004222,2.63869462,2637.3,2637.0,0.5595]
[1727141004735,2.63869462,2637.3,2636.6,45.33848]
[1727141004736,0.37921,2637.2,2636.6,45.33848]
[1727141004938,0.37921,2637.2,2636.6,41.75548]
[1727141004939,3.2078,2637.0,2636.6,41.75548]
[1727141005328,0.5458,2636.9,2636.6,0.5762]
[1727141005635,3.2078,2636.7,2636.6,0.5762]
[1727141006025,3.2078,2636.7,2636.5,0.5419]
[1727141006426,3.2078,2636.7,2636.3,3.96233]
[1727141006427,3.2078,2636.7,2636.3,0.37933]
[1727141007137,3.2078,2636.7,2636.2,0.5671]
[1727141007138,3.58708,2636.7,2636.2,0.5671]
[1727141007331,3.2078,2636.4,2636.2,0.94644]
[1727141007539,3.2078,2636.4,2636.2,0.5671]
[1727141008032,3.2078,2636.4,2636.3,0.37933]
[1727141008731,3.2078,2636.4,2636.3,4.17213]
[1727141009637,3.2078,2636.4,2636.3,44.97213]
[1727141010246,0.5458,2636.9,2636.8,0.37926]
[1727141010626,0.5458,2636.9,2636.3,40.8]
[1727141011627,0.5458,2636.9,2636.8,0.37926]
[1727141012426,0.5458,2636.9,2636.7,0.37927]
[1727141013034,0.5458,2636.9,2636.8,0.37926]
[1727141013831,3.2078,2637.0,2636.3,40.9861986]
[1727141013832,3.2078,2637.0,2636.9,0.37925]
[1727141014036,3.2078,2637.0,2636.7,0.37927]
[1727141014236,3.2078,2637.0,2636.8,0.37926]
[1727141014443,3.739,2637.0,2636.8,0.37926]
[1727141016139,3.739,2637.0,2636.7,0.37927]
[1727141016644,3.739,2637.0,2636.6,0.37928]
[1727141016940,3.2078,2636.7,2636.3,44.38]
[1727141017133,3.2078,2636.7,2636.4,0.37931]
[1727141019134,3.2078,2636.7,2636.3,44.38]
[1727141019330,3.2078,2636.7,2636.4,0.37932]
[1727141019537,3.2078,2636.7,2636.3,44.38]
[1727141019741,3.2078,2636.5,2636.4,0.37931]
[1727141022843,3.2078,2636.5,2636.3,40.8]
[1727141023144,3.2196,2636.4,2636.1,0.5419]
[1727141023350,3.2078,2636.2,2636.1,0.5419]
[1727141023543,3.2078,2636.2,2636.1,41.72126]
[1727141024244,2.66,2636.6,2636.5,0.3793]
[1727141024245,3.2078,2636.6,2636.5,0.3793]
[1727141025048,3.2078,2636.6,2636.4,0.37931]
[1727141025253,3.2078,2636.6,2636.5,0.3793]
[1727141025847,3.2078,2636.6,2636.1,41.3419]
[1727141026047,3.61946,2636.9,2636.4,0.37931]
[1727141026249,3.2078,2636.5,2636.4,0.37931]
[1727141027756,3.2078,2636.5,2636.3,0.37933]
[1727141028351,3.2078,2636.5,2636.1,41.3082]
[1727141028550,3.2078,2636.5,2636.4,0.37932]
[1727141032151,3.2078,2636.5,2636.1,41.3082]
[1727141032459,3.2078,2636.5,2636.3,0.37933]
[1727141032657,3.2078,2636.5,2636.4,0.37932]
[1727141036950,3.2078,2636.5,2636.3,0.37932]
[1727141037250,3.2078,2636.5,2636.1,42.78807908]
[1727141037251,3.2078,2636.5,2636.4,0.37932]
[1727141038962,3.2078,2636.5,2636.4,0.97230561]
[1727141039351,3.2078,2636.5,2636.4,1.55040561]
[1727141039553,3.2078,2636.5,2636.4,2.88619182]
[1727141040265,3.2078,2636.5,2636.4,4.37511058]
[1727141040764,3.2078,2636.5,2636.4,3.99579058]
[1727141041064,3.2078,2636.5,2636.4,2.88642123]
[1727141041265,7.0006,2636.5,2636.3,1.48891876]
[1727141041457,0.5386,2636.4,2636.2,1.48891876]
[1727141041657,0.5386,2636.4,2636.3,0.59303638]
[1727141041857,0.5386,2636.4,2636.1,43.17647876]
[1727141042059,0.5386,2636.4,2636.2,1.92933682]
[1727141042261,0.5386,2636.4,2636.1,42.79711876]
[1727141042459,3.2078,2636.2,2636.1,1.48891876]
[1727141042657,0.37936,2636.1,2635.8,1.48891876]
[1727141042860,6.5386,2636.4,2635.7,2.06121876]
[1727141042861,3.2078,2635.9,2635.7,2.06121876]
[1727141043554,3.7846,2635.9,2635.7,2.06121876]
[1727141043863,3.2078,2635.9,2635.8,0.37941]
[1727141044055,3.2078,2635.9,2635.8,4.34647105]
[1727141044256,3.2078,2635.9,2635.8,3.41845023]
[1727141044479,3.2078,2635.9,2635.8,0.59313626]
[1727141045163,3.2078,2635.9,2635.7,2.44063876]
[1727141045358,3.2078,2635.9,2635.7,0.95172]
[1727141046460,5.8678,2635.9,2635.7,0.95172]
[1727141046667,0.37942,2635.7,2635.6,1.48891876]
[1727141046855,0.37942,2635.7,2635.1,0.3795]
[1727141046856,6.4544,2635.7,2635.1,1.48891876]
[1727141047055,1.1454,2635.8,2634.9,2.42564876]
[1727141047056,5.8678,2635.2,2634.9,2.42564876]
[1727141047364,5.8678,2635.2,2634.9,0.93673]
[1727141047780,2.66,2635.0,2634.7,2.06811876]
[1727141047961,3.7952,2635.1,2634.6,0.37958]
[1727141047962,5.8678,2634.8,2634.6,0.37958]
[1727141048269,5.8678,2634.8,2634.5,1.86850876]
[1727141048563,5.8678,2634.8,2634.5,0.37959]
[1727141048961,2.66,2634.6,2634.3,41.895]
[1727141049158,2.66,2634.6,2634.3,1.095]
[1727141049358,3.2078,2634.4,2634.3,1.095]
[1727141049658,5.8678,2634.4,2634.0,40.8]
[1727141049859,5.8678,2634.1,2633.6,2.02771876]
[1727141050065,3.2078,2633.7,2633.6,2.02771876]
[1727141050269,3.2078,2634.0,2633.6,4.3356]
[1727141050465,3.2078,2634.0,2633.8,0.37969]
[1727141050964,3.2078,2634.0,2633.7,0.3797]
[1727141051970,3.2078,2634.0,2633.6,0.91852]
[1727141052371,3.2078,2634.0,2633.7,0.37971]
[1727141052872,3.2078,2634.0,2633.8,0.37969]
[1727141053266,3.2078,2634.0,2633.6,0.5388]
[1727141053468,3.2078,2634.0,2633.8,0.37968]
[1727141054171,3.2078,2634.0,2633.7,0.3797]
[1727141054672,3.2078,2634.0,2633.6,0.91851]
[1727141054865,3.2078,2634.0,2633.6,0.5388]
[1727141055070,3.2078,2634.0,2633.6,0.89132]
[1727141056067,2.66,2633.8,2633.4,40.8]
[1727141056272,2.66,2633.8,2633.4,41.17974]
[1727141056874,2.66,2633.8,2633.5,0.37973]
[1727141057176,2.66,2633.8,2633.4,40.8]
[1727141057177,3.2078,2634.0,2633.4,40.8]
[1727141057378,3.2078,2634.0,2633.6,0.37971]
[1727141058176,3.2078,2634.0,2633.7,0.5294]
[1727141058474,3.2078,2634.0,2633.7,0.90911]
[1727141058879,3.2078,2634.0,2633.7,0.5294]
[1727141059485,3.2078,2634.0,2633.7,0.9091]
[1727141059679,3.2078,2634.0,2633.8,0.37969]
[1727141060173,3.2078,2634.0,2633.9,0.37968]
[1727141062072,3.2078,2634.0,2633.8,1.0864]
[1727141062073,3.2078,2634.4,2634.1,0.37965]
[1727141062273,3.2078,2634.4,2633.9,0.37967]
[1727141062474,3.2078,2634.1,2634.0,0.37966]
[1727141062673,2.63800955,2634.1,2634.0,0.37966]
[1727141062980,2.63800955,2634.1,2633.9,0.37967]
[1727141063182,2.63800955,2634.1,2633.8,1.46609]
[1727141063573,2.63800955,2634.1,2633.9,0.37968]
[1727141065183,2.63800955,2634.1,2633.8,1.46608]
[1727141065582,2.66,2634.0,2633.7,0.5294]
[1727141065782,2.66,2634.0,2633.4,41.17974]
[1727141065783,4.11427,2634.0,2633.4,41.17974]
[1727141066080,4.63177,2634.0,2633.4,41.74174]
[1727141066271,6.2475,2633.8,2633.4,0.562]
[1727141066477,5.8678,2633.8,2633.4,0.562]
[1727141067078,6.2475,2633.8,2633.4,0.562]
[1727141067986,5.8678,2633.8,2633.4,0.562]
[1727141068187,6.24749,2633.8,2633.4,0.562]
[1727141069085,5.8678,2633.8,2633.4,0.94175]
[1727141069685,6.24749,2633.8,2633.4,0.94175]
[1727141069888,5.8678,2633.8,2633.4,0.94175]
[1727141070292,6.24749,2633.8,2633.4,0.94175]
[1727141070587,5.8678,2633.8,2633.4,0.94175]
[1727141071591,3.2078,2633.7,2633.4,0.94175]
[1727141071984,3.2078,2633.7,2633.4,0.562]
[1727141072282,2.66,2633.6,2633.0,0.5615]
[1727141072590,3.2078,2633.3,2633.0,0.3798]
[1727141072789,3.2078,2633.3,2632.9,1.47021]
[1727141072977,3.767,2633.3,2632.9,1.0904]
[1727141073181,3.767,2633.3,2632.9,1.0678]
[1727141073388,3.767,2633.3,2632.9,42.24762]
[1727141073887,3.767,2633.3,2632.9,41.326]
[1727141073888,2.66,2633.1,2632.9,41.326]
[1727141074384,2.66,2633.1,2632.9,0.526]
[1727141074777,3.767,2633.3,2633.1,0.37979]
[1727141075390,3.767,2633.3,2633.0,0.3798]
[1727141075582,3.767,2633.3,2633.1,0.37979]
[1727141075887,3.767,2633.3,2633.2,40.8]
[1727141076483,7.5646,2633.3,2633.0,0.37979]
[1727141076791,3.767,2633.3,2633.1,0.37979]
[1727141077094,3.767,2633.3,2633.0,0.3798]
[1727141077782,3.767,2633.3,2633.1,40.8]
[1727141078295,3.2078,2633.3,2633.2,0.37978]
[1727141078488,3.7551,2633.7,2633.3,0.37976]
[1727141078992,3.2078,2633.4,2633.2,1.51207]
[1727141079379,3.2078,2633.4,2633.1,41.17979]
[1727141079584,3.2078,2633.4,2633.1,40.8]
[1727141080390,2.66,2633.3,2633.1,40.8]
[1727141080592,0.37978,2633.2,2632.5,0.088]
[1727141080787,2.66,2632.7,2632.4,0.5672]
[1727141080993,3.2078,2632.5,2632.4,0.5672]
[1727141081590,3.2078,2632.5,2632.4,0.9471]
[1727141081789,3.7252,2632.8,2632.4,0.94709]
[1727141081987,3.7252,2632.8,2632.5,0.37987]
[1727141082287,3.7252,2632.8,2632.4,0.94709]
[1727141082596,3.7252,2632.8,2632.5,0.37988]
[1727141083499,3.7252,2632.8,2632.4,0.94709]
[1727141083689,5.8678,2632.5,2631.8,0.088]
[1727141083990,5.8678,2632.5,2631.3,4.138]
[1727141083991,5.8678,2631.9,2631.3,0.088]
[1727141084193,5.8678,2631.9,2631.2,41.18007]
[1727141084194,3.2078,2631.5,2631.2,40.8]
[1727141084391,3.2078,2631.5,2631.0,0.5335]
[1727141084586,3.2078,2631.5,2630.6,0.5338]
[1727141084587,2.66,2631.3,2630.6,0.5338]
[1727141084786,3.2078,2631.5,2630.6,0.5338]
[1727141084787,5.8678,2631.5,2630.6,1.0673]
[1727141084981,4.14,2631.8,2630.6,1.0673]
[1727141084982,3.2078,2631.1,2630.8,0.38012]
[1727141085190,3.2078,2631.1,2630.7,41.18014]
[1727141085383,3.2078,2630.8,2630.6,1.0673]
[1727141085985,3.2078,2630.8,2629.6,0.102]
[1727141085986,3.8016,2630.7,2629.6,0.102]
[1727141086186,3.2078,2630.4,2629.7,0.5335]
[1727141086597,3.2078,2630.4,2630.0,0.38024]
[1727141086799,3.2078,2630.4,2630.0,0.38023]
[1727141087289,3.2078,2630.4,2630.1,2.66]
[1727141087493,3.2078,2630.7,2630.1,2.66]
[1727141087788,3.2078,2630.7,2629.9,6.7898]
[1727141087789,5.8678,2630.7,2630.2,41.2983]
[1727141088395,3.2078,2630.7,2630.2,41.2983]
[1727141088593,3.2078,2630.7,2630.2,40.8]
[1727141089095,3.2078,2630.3,2630.2,40.8]
[1727141089299,3.2078,2630.6,2630.2,40.8]
[1727141090389,3.2078,2630.3,2629.7,0.5335]
[1727141090590,3.2078,2630.3,2629.9,0.38024]
[1727141090893,3.2078,2630.3,2630.0,41.18023]
[1727141091092,3.2078,2630.6,2630.0,40.8]
[1727141091393,3.2078,2630.6,2630.2,0.38021]
[1727141091592,3.2078,2630.6,2630.3,0.3802]
[1727141091785,3.2078,2630.6,2630.0,40.8]
[1727141092098,3.2078,2630.6,2630.4,0.38018]
[1727141092397,3.2078,2630.6,2630.1,0.5536]
[1727141092599,3.2078,2630.6,2630.3,0.38019]
[1727141092808,3.2078,2630.6,2630.4,0.5155]
[1727141093595,3.2078,2630.6,2630.4,0.5077]
[1727141094296,3.2078,2630.6,2630.5,0.38017]
[1727141094488,3.2078,2630.6,2630.5,4.18177]
[1727141094693,0.5048,2631.3,2630.5,4.18177]
[1727141094694,3.2078,2630.9,2630.7,0.38014]
[1727141095398,3.2078,2630.9,2630.5,0.90846]
[1727141095595,3.2078,2630.9,2630.6,0.38015]
[1727141095991,3.2078,2630.9,2630.7,0.38014]
[1727141096204,3.2078,2630.9,2630.8,0.38013]
[1727141096391,3.2078,2630.9,2630.7,0.38014]
[1727141096595,3.2078,2630.9,2630.5,3.7361]
[1727141096596,3.2078,2630.9,2630.5,0.5283]
[1727141098302,3.2078,2630.9,2630.4,0.5077]
[1727141098609,3.2078,2630.9,2630.4,0.88788]
[1727141098790,3.2078,2630.9,2630.5,0.38017]
[1727141098998,3.2078,2630.9,2630.4,0.5077]
[1727141100696,0.38013,2630.8,2630.4,0.5077]
[1727141100898,3.58797,2630.5,2630.0,40.8]
[1727141101094,3.2078,2630.1,2630.0,40.8]
[1727141101293,3.7202,2630.4,2630.0,40.8]
[1727141101608,3.2078,2630.1,2630.0,40.8]
[1727141102100,7.0102,2630.1,2629.7,0.5447]
[1727141102300,3.2078,2630.1,2629.7,0.5447]
[1727141102500,3.2078,2630.1,2629.8,40.8]
[1727141102712,7.0102,2630.1,2629.0,0.6205]
[1727141103005,3.2078,2629.5,2629.0,0.91288]
[1727141103207,3.2078,2629.5,2629.1,40.8]
[1727141103405,3.2078,2629.2,2629.1,40.8]
[1727141103703,3.8032,2629.5,2629.1,41.18036]
[1727141103704,3.2078,2629.5,2629.1,41.18036]
[1727141103910,3.2078,2629.5,2629.1,40.8]
[1727141104501,0.5029,2629.7,2629.1,40.8]
[1727141104806,0.5029,2629.7,2629.2,0.38036]
[1727141105104,3.2078,2629.8,2629.3,0.5538]
[1727141105705,3.2078,2629.8,2629.4,0.38032]
[1727141106101,3.2078,2629.8,2629.3,1.079]
[1727141106409,3.2078,2629.8,2629.4,0.38032]
[1727141108200,3.2078,2629.8,2629.6,0.38029]
[1727141108804,3.2078,2630.2,2629.7,3.8024]
[1727141109005,0.95007,2631.5,2629.6,12.252]
[1727141109006,0.5371,2630.7,2630.0,2.67]
[1727141109204,3.2078,2630.8,2630.1,45.032]
[1727141109408,3.2078,2630.8,2630.1,45.5904]
[1727141109611,3.2078,2630.8,2630.4,0.38018]